[Event "Frauenbundesliga 2021-22"]
[Site "Germany"]
[Date "2022.03.19"]
[Round "5.6"]
[White "Genova, Lyubka"]
[Black "Doll, Rebecca"]
[Result "1-0"]
[ECO "C47"]
[WhiteElo "2222"]
[BlackElo "1941"]
[Annotator "ChessBase"]
[PlyCount "83"]
[EventDate "2021.11.26"]
[EventType "team-tourn"]
[EventCountry "GER"]
[SourceTitle "playchess.com"]
[Source "ChessBase"]
[SourceQuality "1"]
[TimeControl "40/5400+30:1800+30"]

1. e4 {[%emt 0:00:09]} e5 {[%emt 0:00:05]} 2. Nf3 {[%emt 0:00:16]} Nc6 {[%emt 0:00:06]} 3. Nc3 {[%emt 0:00:16]} Nf6 {[%emt 0:00:11]} 4. d4 {[%emt 0:00:08]} exd4 {[%emt 0:00:12]} 5. Nxd4 {[%emt 0:00:09]} Nxe4 {[%emt 0:00:11]} 6. Nxe4 {[%emt 0:13:09]} Qe7 {[%emt 0:00:09]} 7. f3 {[%emt 0:03:36]} d5 {[%emt 0:00:12]} 8. Nxc6 {[%emt 0:06:54]} bxc6 {[%emt 0:01:28]} 9. Bd3 {[%emt 0:01:29]} dxe4 {[%emt 0:04:14]} 10. fxe4 {[%emt 0:00:23]} Qh4+ {[%emt 0:02:39]} 11. g3 {[%emt 0:00:15]} Qf6 {[%emt 0:00:48]} 12. c3 {[%emt 0:10:03]} Bh3 {[%emt 0:11:05]} 13. Qe2 {[%emt 0:01:57]} Bd6 {[%emt 0:08:00]} 14. Be3 {[%emt 0:19:51]} Be5 {[%emt 0:11:29]} 15. O-O-O {[%emt 0:08:01]} a5 {[%emt 0:16:58]} 16. Bc2 {[%emt 0:04:49]} O-O {[%emt 0:08:07]} 17. Bd4 {[%emt 0:04:45]} Rfe8 {[%emt 0:08:54]} 18. Kb1 {[%emt 0:05:15]} Qg6 {[%emt 0:06:52]} 19. Qf2 {[%emt 0:03:10]} Re7 {[%emt 0:10:00]} 20. Bxe5 {[%emt 0:05:08]} Rxe5 {[%emt 0:00:09]} 21. Qf4 {[%emt 0:00:15]} Qe6 {[%emt 0:03:34]} 22. Rhg1 {[%emt 0:04:59]} g5 {[%emt 0:03:44]} 23. Qf2 {[%emt 0:00:38]} Bg4 {[%emt 0:00:20]} 24. Rdf1 {[%emt 0:01:26]} a4 {[%emt 0:00:37]} 25. h4 {[%emt 0:00:42]} Bh3 {[%emt 0:00:34]} 26. Rd1 {[%emt 0:00:30]} h6 {[%emt 0:00:53]} 27. hxg5 {[%emt 0:01:19]} hxg5 {[%emt 0:00:05]} 28. Rh1 {[%emt 0:00:05]} g4 {[%emt 0:01:16]} 29. Rd4 {[%emt 0:02:14]} c5 {[%emt 0:00:36]} 30. Rdd1 {[%emt 0:00:51]} a3 {[%emt 0:00:31]} 31. b3 {[%emt 0:02:28]} Rb8 {[%emt 0:00:21]} 32. Ka1 {[%emt 0:00:43]} Rh5 {[%emt 0:00:35]} 33. Rhe1 {[%emt 0:00:32]} Qe5 {[%emt 0:00:14]} 34. Re3 {[%emt 0:00:10]} Qe6 {[%emt 0:00:51]} 35. Bd3 {[%emt 0:00:35]} Rh6 {[%emt 0:01:05]} 36. e5 {[%emt 0:00:41]} Rh5 {[%emt 0:00:13]} 37. Bc4 {[%emt 0:00:13]} Qf5 {[%emt 0:00:44]} 38. Qe2 {[%emt 0:00:50]} Kg7 {[%emt 0:00:40]} 39. e6 {[%emt 0:00:20]} fxe6 {[%emt 0:00:18]} 40. Rxe6 {[%emt 0:00:37]} Qf3 {[%emt 0:00:44]} 41. Re7+ {[%emt 0:04:27]} Kg6 {[%emt 0:06:57]} 42. Bd3+ {[%emt 0:01:02]} 1-0

[Event "Frauenbundesliga 2021-22"]
[Site "Germany"]
[Date "2022.03.20"]
[Round "5.6"]
[White "Giebel, Christine"]
[Black "Lossin, Charlotte"]
[Result "1-0"]
[ECO "C05"]
[WhiteElo "1827"]
[BlackElo "1527"]
[Annotator "NA RC"]
[PlyCount "61"]
[EventDate "2021.11.26"]
[EventType "team-tourn"]
[EventCountry "GER"]
[SourceTitle "playchess.com"]
[Source "ChessBase"]
[SourceQuality "1"]
[TimeControl "40/5400+30:1800+30"]

1. e4 {[%emt 0:00:50]} e6 {[%emt 0:00:12]} 2. d4 {[%emt 0:00:08]} d5 {[%emt 0:00:06]} 3. Nc3 {[%emt 0:00:06]} Nf6 {[%emt 0:01:21]} 4. e5 {[%emt 0:00:32]} Nfd7 {[%emt 0:00:20]} 5. f4 {[%emt 0:01:07]} c5 {[%emt 0:02:42]} 6. Nf3 {[%emt 0:00:55]} Nc6 {[%emt 0:03:03]} 7. Ne2 {[%emt 0:00:34]} Qb6 {[%emt 0:05:27]} 8. c3 {[%emt 0:01:02]} cxd4 {[%emt 0:00:59]} 9. cxd4 {[%emt 0:03:34]} Be7 {[%emt 0:07:45]} 10. Nc3 {[%emt 0:05:13]} f6 {[%emt 0:06:04]} 11. Be2 {[%emt 0:03:41]} O-O {[%emt 0:02:58]} 12. a3 {[%emt 0:06:34]} a6 {[%emt 0:02:05]} 13. b4 {[%emt 0:03:17]} Qa7 {[%emt 0:13:29]} 14. Na4 {[%emt 0:19:09]} b5 {[%emt 0:07:18]} 15. Nc5 {[%emt 0:04:28]} Nb6 {[%emt 0:00:17]} 16. O-O {[%emt 0:04:55]} Nc4 {[%emt 0:01:15]} 17. Kh1 {[%emt 0:05:35]} Kh8 {[%emt 0:16:20]} 18. Qe1 {[%emt 0:14:24]} Qc7 {[%emt 0:01:32]} 19. Bd3 {[%emt 0:04:52]} a5 {[%emt 0:06:43]} 20. Bxc4 {[%emt 0:06:54]} dxc4 {[%emt 0:01:25]} 21. Bd2 {[%emt 0:03:43]} a4 {[%emt 0:01:47]} 22. Bc3 {[%emt 0:01:37]} fxe5 {[%emt 0:04:08]} 23. fxe5 {[%emt 0:00:49]} Rf4 {[%emt 0:02:28]} 24. Qg3 {[%emt 0:02:41]} Rf8 {[%emt 0:00:58]} 25. Ng5 {[%emt 0:01:42]} Bxc5 {[%emt 0:01:01]} 26. bxc5 {[%emt 0:00:02]} Qe7 {[%emt 0:00:52]} 27. Ne4 {[%emt 0:01:17]} Ba6 {[%emt 0:03:45]} 28. Nd6 {[%emt 0:00:28]} Qd7 {[%emt 0:04:55]} 29. Rf3 {[%emt 0:00:18]} Rxf3 {[%emt 0:00:26]} 30. Qxf3 {[%emt 0:00:04]} Rd8 {[%emt 0:00:36]} 31. Nf7+ {[%emt 0:00:22]} 1-0

[Event "Frauenbundesliga 2021-22"]
[Site "Germany"]
[Date "2022.03.19"]
[Round "5.7"]
[White "Klek, Hanna Marie"]
[Black "Antolak, Julia"]
[Result "1/2-1/2"]
[ECO "B12"]
[WhiteElo "2314"]
[BlackElo "2368"]
[Annotator "NA"]
[PlyCount "120"]
[EventDate "2021.11.26"]
[EventType "team-tourn"]
[EventCountry "GER"]
[SourceTitle "playchess.com"]
[Source "ChessBase"]
[SourceQuality "1"]
[TimeControl "40/5400+30:1800+30"]

1. e4 {[%emt 0:00:03]} c6 {[%emt 0:00:07]} 2. d4 {[%emt 0:00:07]} d5 {[%emt 0:00:06]} 3. e5 {[%emt 0:00:04]} c5 {[%emt 0:00:06]} 4. dxc5 {[%emt 0:00:06]} e6 {[%emt 0:00:15]} 5. Nf3 {[%emt 0:01:49]} Bxc5 {[%emt 0:01:04]} 6. Bd3 {[%emt 0:00:14]} Ne7 {[%emt 0:00:44]} 7. O-O {[%emt 0:00:42]} Ng6 {[%emt 0:00:55]} 8. a3 {[%emt 0:01:23] 8.Nbd2 is more fashionable.} Qc7 {[%emt 0:02:23]} 9. b4 {[%emt 0:01:29]} Bb6 {[%emt 0:00:54]} 10. Bb2 {[%emt 0:00:33]} a5 {[%emt 0:02:04] [#]} 11. Nc3 $146 {[%emt 0:06:13]} ({Predecessor:} 11. Re1 axb4 12. axb4 Rxa1 13. Bxa1 Nc6 14. Qd2 Bd7 15. h4 O-O 16. h5 Nge7 17. h6 {0-1 (43) Salimova,N (2395)-Napoli,N (2317) Chess.com INT 2021}) 11... O-O {[%emt 0:05:24]} 12. Nb5 {[%emt 0:04:21]} Qe7 {[%emt 0:01:55]} 13. Nd6 {[%emt 0:11:13]} Bc7 {[%emt 0:09:09]} 14. c4 {[%emt 0:11:32]} dxc4 {[%emt 0:09:35]} 15. Nxc4 {[%emt 0:00:46]} Rd8 {[%emt 0:03:12]} 16. Qb3 {[%emt 0:06:18]} a4 {[%emt 0:07:02]} 17. Qc2 {[%emt 0:02:19]} b5 {[%emt 0:08:55]} 18. Ncd2 {[%emt 0:07:18]} Bb7 {[%emt 0:02:34]} 19. Bxb5 {[%emt 0:09:17]} Nf4 {[%emt 0:04:36]} 20. Rad1 {[%emt 0:06:04]} Nxg2 {[%emt 0:06:24]} 21. Ne4 {[%emt 0:06:20]} Nf4 {[%emt 0:07:11]} 22. Rxd8+ {[%emt 0:00:22]} Bxd8 {[%emt 0:01:34]} 23. Bc1 {[%emt 0:00:54]} Ng6 {[%emt 0:02:19]} 24. Qe2 {[%emt 0:05:37]} Nd7 {[%emt 0:04:56]} 25. Bg5 {[%emt 0:01:52]} f6 {[%emt 0:00:28]} 26. exf6 {[%emt 0:00:15]} gxf6 {[%emt 0:00:16]} 27. Rd1 {[%emt 0:05:09]} Ngf8 {[%emt 0:03:01]} 28. Bh6 {[%emt 0:01:24]} Bd5 {[%emt 0:02:41]} 29. Ng3 {[%emt 0:01:43]} Qf7 {[%emt 0:01:50]} 30. Bc4 {[%emt 0:01:15]} Nb6 {[%emt 0:00:58]} 31. Bxd5 {[%emt 0:00:13]} Nxd5 {[%emt 0:00:09]} 32. Nd4 {[%emt 0:00:25]} Nc3 {[%emt 0:03:20]} 33. Qf3 {[%emt 0:03:33]} Nxd1 {[%emt 0:04:58]} 34. Qxa8 {[%emt 0:00:05]} Be7 {[%emt 0:00:29]} 35. Qxa4 {[%emt 0:01:11]} Nc3 {[%emt 0:00:48]} 36. Qc6 {[%emt 0:00:29]} Nd5 {[%emt 0:02:19]} 37. Bxf8 {[%emt 0:00:46]} Bxf8 {[%emt 0:00:22]} 38. Qxe6 {[%emt 0:01:16]} Qxe6 {[%emt 0:01:43]} 39. Nxe6 {[%emt 0:00:02]} Bh6 {[%emt 0:00:22]} 40. b5 {[%emt 0:01:40]} Nb6 {[%emt 0:01:26]} 41. Nd4 {[%emt 0:06:36]} Bf8 {[%emt 0:03:46]} 42. Nc2 {[%emt 0:00:15]} Kf7 {[%emt 0:00:17]} 43. Kf1 {[%emt 0:02:09]} Ke6 {[%emt 0:00:22]} 44. Ke2 {[%emt 0:02:01]} Kd5 {[%emt 0:00:37]} 45. Kd3 {[%emt 0:03:44]} Nc4 $18 {[%emt 0:05:32]} 46. Ne3+ {[%emt 0:08:35]} Nxe3 {[%emt 0:00:09]} 47. fxe3 {[%emt 0:00:16]} Bxa3 {[%emt 0:00:19]} 48. Ne4 {[%emt 0:01:04]} f5 {[%emt 0:05:18]} 49. Nf6+ {[%emt 0:04:54]} Kc5 {[%emt 0:00:38]} 50. Nxh7 {[%emt 0:00:19]} Kxb5 {[%emt 0:00:18]} 51. Ng5 {[%emt 0:02:28]} Kc6 {[%emt 0:02:08]} 52. h4 {[%emt 0:00:59]} Be7 {[%emt 0:01:49]} 53. Nf3 {[%emt 0:01:07]} Kd5 {[%emt 0:01:35]} 54. h5 {[%emt 0:01:29]} Bf8 {[%emt 0:01:14]} 55. Nh4 {[%emt 0:00:11]} Ke6 {[%emt 0:00:15]} 56. Ng6 {[%emt 0:00:49]} Bh6 {[%emt 0:00:43]} 57. Kd4 {[%emt 0:00:16]} Bg7+ {[%emt 0:00:53]} 58. Kc4 {[%emt 0:01:19]} Bh6 {[%emt 0:04:04]} 59. Kd3 {[%emt 0:00:48]} Bg5 {[%emt 0:00:37]} 60. Ke2 {[%emt 0:01:44]} Bh6 {[%emt 0:00:41]} 1/2-1/2

[Event "Frauenbundesliga 2021-22"]
[Site "Germany"]
[Date "2022.03.19"]
[Round "5.8"]
[White "Radikovic, Anamarija"]
[Black "Schleining, Zoya"]
[Result "1/2-1/2"]
[ECO "C47"]
[WhiteElo "2121"]
[BlackElo "2320"]
[Annotator "ChessBase"]
[PlyCount "67"]
[EventDate "2021.11.26"]
[EventType "team-tourn"]
[EventCountry "GER"]
[SourceTitle "playchess.com"]
[Source "ChessBase"]
[SourceQuality "1"]
[TimeControl "40/5400+30:1800+30"]

1. e4 {[%emt 0:00:02]} e5 {[%emt 0:00:56]} 2. Nf3 {[%emt 0:00:11]} Nc6 {[%emt 0:00:13]} 3. Nc3 {[%emt 0:00:07]} Nf6 {[%emt 0:00:32]} 4. d4 {[%emt 0:00:43]} exd4 {[%emt 0:01:08]} 5. Nxd4 {[%emt 0:00:07]} Bb4 {[%emt 0:03:02]} 6. Nxc6 {[%emt 0:00:11]} bxc6 {[%emt 0:00:04]} 7. Bd3 {[%emt 0:00:10]} O-O {[%emt 0:03:10]} 8. O-O {[%emt 0:00:15]} Re8 {[%emt 0:00:21]} 9. Qf3 {[%emt 0:04:40]} Rb8 {[%emt 0:07:41]} 10. h3 {[%emt 0:04:05]} Bd6 {[%emt 0:04:46]} 11. Rb1 {[%emt 0:07:03]} Qe7 {[%emt 0:09:37]} 12. Bf4 {[%emt 0:00:33]} Bxf4 {[%emt 0:04:43]} 13. Qxf4 {[%emt 0:00:06]} d6 {[%emt 0:00:29]} 14. b3 {[%emt 0:13:55]} Nd7 {[%emt 0:07:42]} 15. Qd2 {[%emt 0:21:46]} Nc5 {[%emt 0:11:40]} 16. f4 {[%emt 0:07:34]} Nxd3 {[%emt 0:05:04]} 17. cxd3 {[%emt 0:03:05]} f5 {[%emt 0:02:30]} 18. Rbe1 {[%emt 0:04:15]} Qh4 {[%emt 0:01:45]} 19. d4 {[%emt 0:09:07]} fxe4 {[%emt 0:02:20]} 20. Nxe4 {[%emt 0:02:24]} Ba6 {[%emt 0:02:27]} 21. Rf3 {[%emt 0:00:09]} Re7 {[%emt 0:10:12]} 22. Rfe3 {[%emt 0:09:38]} Rbe8 {[%emt 0:09:14]} 23. Nf2 {[%emt 0:00:14]} Kf8 {[%emt 0:04:21]} 24. Ng4 {[%emt 0:05:36]} h5 {[%emt 0:03:29]} 25. Rxe7 {[%emt 0:00:40]} Rxe7 {[%emt 0:00:08]} 26. Rxe7 {[%emt 0:00:42]} Qxe7 {[%emt 0:00:11]} 27. Nh2 {[%emt 0:01:33]} Qe4 {[%emt 0:01:54]} 28. Nf3 {[%emt 0:00:31]} Bd3 {[%emt 0:01:10]} 29. Kf2 {[%emt 0:02:16]} a5 {[%emt 0:01:13]} 30. Qe3 {[%emt 0:01:03]} Qxe3+ {[%emt 0:01:05]} 31. Kxe3 {[%emt 0:00:05]} Bf1 {[%emt 0:00:19]} 32. Kf2 {[%emt 0:00:20]} Bd3 {[%emt 0:00:27]} 33. Ke3 {[%emt 0:00:19]} Bf1 {[%emt 0:00:12]} 34. Ke4 1/2-1/2

[Event "Frauenbundesliga 2021-22"]
[Site "Germany"]
[Date "2022.03.19"]
[Round "5.10"]
[White "Adamowicz, Katarzyna"]
[Black "Koepke, Elena"]
[Result "1-0"]
[ECO "B74"]
[WhiteElo "2084"]
[BlackElo "2304"]
[Annotator "ChessBase"]
[PlyCount "71"]
[EventDate "2021.11.26"]
[EventType "team-tourn"]
[EventCountry "GER"]
[SourceTitle "playchess.com"]
[Source "ChessBase"]
[SourceQuality "1"]
[TimeControl "40/5400+30:1800+30"]

1. e4 {[%emt 1:01:00]} c5 2. Nf3 d6 3. d4 cxd4 4. Nxd4 Nf6 5. Nc3 g6 6. Be2 Bg7 7. Be3 O-O 8. O-O Nc6 9. Nb3 {[%emt 0:04:00]} Be6 10. f4 Na5 11. Bd4 Rc8 12. f5 Bc4 13. Bd3 Nd7 14. Bxg7 Kxg7 15. Bxc4 Rxc4 16. Qd5 Nxb3 17. axb3 Qb6+ 18. Kh1 Rd4 19. Qa5 Qxa5 20. Rxa5 a6 21. Rd5 Rb4 22. Rd2 Re8 23. Kg1 Ne5 24. f6+ Kh8 25. Nd5 Rxe4 26. Nc7 Rc8 27. fxe7 Nc6 28. e8=Q+ Rexe8 29. Nxe8 Rxe8 30. Rxf7 Ne5 31. Rxb7 Ng4 32. g3 Re1+ 33. Kg2 Re6 34. h3 Ne3+ 35. Kf2 d5 36. c4 1-0

[Event "Frauenbundesliga 2021-22"]
[Site "Germany"]
[Date "2022.03.19"]
[Round "5.11"]
[White "Jelica, Mara"]
[Black "Brandt, Carina"]
[Result "1-0"]
[ECO "B47"]
[WhiteElo "2085"]
[BlackElo "2078"]
[Annotator "NA"]
[PlyCount "65"]
[EventDate "2021.11.26"]
[EventType "team-tourn"]
[EventCountry "GER"]
[SourceTitle "playchess.com"]
[Source "ChessBase"]
[SourceQuality "1"]
[TimeControl "40/5400+30:1800+30"]

1. e4 c5 {[%emt 0:00:12]} 2. Nf3 {[%emt 0:00:33]} e6 {[%emt 0:00:08]} 3. d4 {[%emt 0:00:04]} cxd4 {[%emt 0:00:05]} 4. Nxd4 {[%emt 0:00:05]} Nc6 {[%emt 0:00:09]} 5. Nc3 {[%emt 0:00:25]} Qc7 {[%emt 0:00:11]} 6. Be2 {[%emt 0:00:14]} a6 {[%emt 0:00:31]} 7. O-O {[%emt 0:01:26]} Nf6 {[%emt 0:00:19]} 8. Be3 {[%emt 0:02:58]} Bb4 {[%emt 0:00:36]} 9. Nxc6 {[%emt 0:01:23]} bxc6 {[%emt 0:00:49]} 10. a3 {[%emt 0:08:55]} Bxc3 {[%emt 0:09:48]} 11. bxc3 {[%emt 0:00:02]} O-O {[%emt 0:02:39]} 12. Bc5 {[%emt 0:07:18]} Nxe4 {[%emt 0:03:37]} 13. Bxf8 {[%emt 0:01:06]} Kxf8 {[%emt 0:00:05]} 14. Bd3 {[%emt 0:04:24]} Nf6 {[%emt 0:05:41]} 15. Qf3 {[%emt 0:06:41]} e5 {[%emt 0:09:26]} 16. c4 {[%emt 0:01:36]} Qa5 {[%emt 0:01:35]} 17. Qe3 {[%emt 0:03:19]} d6 {[%emt 0:06:20]} 18. c5 {[%emt 0:05:56]} Nd5 {[%emt 0:06:54]} 19. Qf3 {[%emt 0:11:11]} Qxc5 {[%emt 0:00:38]} 20. Bxh7 {[%emt 0:00:27]} Nf6 {[%emt 0:08:20]} 21. Bf5 {[%emt 0:02:08]} d5 {[%emt 0:03:13]} 22. Bxc8 {[%emt 0:00:38]} Rxc8 {[%emt 0:00:05]} 23. Qe2 {[%emt 0:01:35]} a5 {[%emt 0:10:08]} 24. Qxe5 {[%emt 0:04:17]} Ne4 {[%emt 0:00:16]} 25. Qh5 {[%emt 0:07:32]} Kg8 {[%emt 0:00:31]} 26. Qe2 {[%emt 0:02:45]} Rb8 {[%emt 0:04:48]} 27. Rab1 {[%emt 0:01:19]} Re8 {[%emt 0:00:07]} 28. Rb3 {[%emt 0:01:42]} Nd6 {[%emt 0:02:01]} 29. Qd1 {[%emt 0:03:57]} Nc4 {[%emt 0:02:32]} 30. Re1 {[%emt 0:01:21]} Rd8 {[%emt 0:03:26]} 31. Qh5 {[%emt 0:02:27]} g6 {[%emt 0:01:03]} 32. Qh4 {[%emt 0:00:31]} Rf8 {[%emt 0:00:18]} 33. Rh3 {[%emt 0:00:16]} 1-0

[Event "Frauenbundesliga 2021-22"]
[Site "Germany"]
[Date "2022.03.20"]
[Round "5.12"]
[White "Just, Anita"]
[Black "Dartmann Aubanell, Catriona"]
[Result "0-1"]
[ECO "C14"]
[WhiteElo "1895"]
[BlackElo "1834"]
[Annotator "NA RC"]
[PlyCount "138"]
[EventDate "2021.11.26"]
[EventType "team-tourn"]
[EventCountry "GER"]
[SourceTitle "playchess.com"]
[Source "ChessBase"]
[SourceQuality "1"]
[TimeControl "40/5400+30:1800+30"]

1. e4 {[%emt 0:00:03]} e6 {[%emt 0:00:10]} 2. d4 {[%emt 0:00:06]} d5 {[%emt 0:00:11]} 3. Nc3 {[%emt 0:00:09]} Nf6 {[%emt 0:00:18]} 4. Bg5 {[%emt 0:00:22]} Be7 {[%emt 0:00:43]} 5. e5 {[%emt 0:00:54]} Nfd7 {[%emt 0:00:32]} 6. Bxe7 {[%emt 0:00:09]} Qxe7 {[%emt 0:00:15]} 7. f4 {[%emt 0:00:15]} a6 {[%emt 0:02:04]} 8. Nf3 {[%emt 0:01:36]} c5 {[%emt 0:00:47]} 9. Qd2 {[%emt 0:00:20]} Nc6 {[%emt 0:01:49]} 10. dxc5 {[%emt 0:00:34]} Nxc5 {[%emt 0:01:42]} 11. O-O-O {[%emt 0:00:29]} b5 {[%emt 0:05:34]} 12. Kb1 {[%emt 0:02:41]} b4 {[%emt 0:12:16]} 13. Ne2 {[%emt 0:02:12]} Ne4 {[%emt 0:12:18]} 14. Qe3 {[%emt 0:04:42]} a5 {[%emt 0:07:14]} 15. Nd2 {[%emt 0:23:32]} Qc5 {[%emt 0:07:37]} 16. Qxc5 {[%emt 0:03:13]} Nxc5 {[%emt 0:00:02]} 17. g4 {[%emt 0:07:16]} a4 {[%emt 0:06:57]} 18. Ng3 {[%emt 0:07:11]} Ba6 {[%emt 0:06:26]} 19. Nf3 {[%emt 0:02:35]} b3 {[%emt 0:03:39]} 20. cxb3 {[%emt 0:03:29]} axb3 {[%emt 0:01:34]} 21. a3 {[%emt 0:01:15]} Bxf1 {[%emt 0:05:25]} 22. Rhxf1 {[%emt 0:00:36]} Na5 {[%emt 0:00:44]} 23. Nd4 {[%emt 0:05:09]} Nc4 {[%emt 0:02:04]} 24. Rf3 {[%emt 0:02:10]} Rb8 {[%emt 0:02:09]} 25. Nge2 {[%emt 0:09:41]} O-O {[%emt 0:12:05]} 26. Nc1 {[%emt 0:05:34]} Na4 {[%emt 0:02:10]} 27. Rxb3 {[%emt 0:14:09]} Naxb2 {[%emt 0:00:54]} 28. Rg1 {[%emt 0:00:48]} Rxb3 {[%emt 0:02:30]} 29. Ncxb3 {[%emt 0:00:25]} Nd3 {[%emt 0:00:31]} 30. Rf1 {[%emt 0:00:52]} Nxa3+ {[%emt 0:01:02]} 31. Ka2 {[%emt 0:00:22]} Ra8 {[%emt 0:00:21]} 32. Rf3 {[%emt 0:00:40]} Nc4+ {[%emt 0:02:12]} 33. Kb1 {[%emt 0:00:09]} Nb4 {[%emt 0:00:58]} 34. Rf2 {[%emt 0:00:43]} h6 {[%emt 0:00:38]} 35. h4 {[%emt 0:00:05]} Kf8 {[%emt 0:00:45]} 36. f5 {[%emt 0:01:27]} Ke7 {[%emt 0:00:46]} 37. f6+ {[%emt 0:01:45]} gxf6 {[%emt 0:00:02]} 38. Rxf6 {[%emt 0:00:27]} Nxe5 {[%emt 0:00:39]} 39. Rxh6 {[%emt 0:00:30]} Nxg4 {[%emt 0:00:07]} 40. Rh5 {[%emt 0:00:48]} Rg8 {[%emt 0:01:38]} 41. Kc1 {[%emt 0:04:37]} Nd3+ {[%emt 0:02:43]} 42. Kd2 {[%emt 0:00:30]} Nf4 {[%emt 0:00:05]} 43. Rg5 {[%emt 0:08:58]} Rxg5 {[%emt 0:00:43]} 44. hxg5 {[%emt 0:00:06]} Ne5 {[%emt 0:02:26]} 45. Ke3 {[%emt 0:04:20]} Nh3 {[%emt 0:00:50]} 46. Nc5 {[%emt 0:05:58]} Nxg5 {[%emt 0:01:55]} 47. Kf4 {[%emt 0:00:50]} Nh3+ {[%emt 0:01:07]} 48. Kg3 {[%emt 0:00:30]} Ng5 {[%emt 0:00:24]} 49. Kf4 {[%emt 0:00:06]} Kf6 {[%emt 0:00:12]} 50. Ne2 {[%emt 0:02:12]} Ng6+ {[%emt 0:01:38]} 51. Ke3 {[%emt 0:00:36]} e5 {[%emt 0:00:34]} 52. Ng3 {[%emt 0:00:54]} Ne4 {[%emt 0:02:35]} 53. Ncxe4+ {[%emt 0:01:03]} dxe4 {[%emt 0:00:04]} 54. Kxe4 {[%emt 0:00:14]} Ke6 {[%emt 0:00:21]} 55. Nf5 {[%emt 0:00:32]} f6 {[%emt 0:01:46]} 56. Ng7+ {[%emt 0:00:28]} Kf7 {[%emt 0:00:37]} 57. Nf5 {[%emt 0:00:08]} Ne7 {[%emt 0:00:17]} 58. Ng3 {[%emt 0:02:59]} Ke6 {[%emt 0:00:26]} 59. Ne2 {[%emt 0:01:12]} f5+ {[%emt 0:00:13]} 60. Ke3 {[%emt 0:00:21]} Nd5+ {[%emt 0:00:31]} 61. Kf3 {[%emt 0:00:13]} e4+ {[%emt 0:00:21]} 62. Kf2 {[%emt 0:01:08]} Ke5 {[%emt 0:00:18]} 63. Ke1 {[%emt 0:00:29]} f4 {[%emt 0:00:37]} 64. Kf2 {[%emt 0:00:14]} f3 {[%emt 0:02:21]} 65. Ng3 {[%emt 0:00:30]} Kf4 {[%emt 0:00:18]} 66. Nh5+ {[%emt 0:00:29]} Kg4 {[%emt 0:00:06]} 67. Ng7 {[%emt 0:00:13]} e3+ {[%emt 0:00:17]} 68. Kf1 {[%emt 0:00:36]} Nc7 {[%emt 0:00:39]} 69. Ke1 {[%emt 0:01:02]} Kg5 {[%emt 0:00:12]} 0-1

[Event "Frauenbundesliga 2021-22"]
[Site "Germany"]
[Date "2022.03.20"]
[Round "6.1"]
[White "Reizniece-Ozola, Dana"]
[Black "Cosma, Elena-Luminita"]
[Result "0-1"]
[ECO "A13"]
[WhiteElo "2283"]
[BlackElo "2281"]
[Annotator "ChessBase"]
[PlyCount "97"]
[EventDate "2021.11.26"]
[EventType "team-tourn"]
[EventCountry "GER"]
[SourceTitle "playchess.com"]
[Source "ChessBase"]
[SourceQuality "1"]
[TimeControl "40/5400+30:1800+30"]

1. c4 {[%emt 0:00:09]} e6 {[%emt 0:00:07]} 2. Nf3 {[%emt 0:00:11]} d5 {[%emt 0:00:15]} 3. e3 {[%emt 0:00:09]} Nf6 {[%emt 0:00:13]} 4. b3 {[%emt 0:00:34]} c5 {[%emt 0:00:27]} 5. Bb2 {[%emt 0:01:11]} Nc6 {[%emt 0:00:15]} 6. a3 {[%emt 0:03:30]} Be7 {[%emt 0:08:36]} 7. cxd5 {[%emt 0:01:08]} exd5 {[%emt 0:00:05]} 8. d4 {[%emt 0:00:05]} O-O {[%emt 0:01:28]} 9. dxc5 {[%emt 0:03:09]} Bxc5 {[%emt 0:00:06]} 10. Qc2 {[%emt 0:00:50]} Bd6 {[%emt 0:01:33]} 11. Nc3 {[%emt 0:05:48]} Bg4 {[%emt 0:06:55]} 12. Ng5 {[%emt 0:17:15]} d4 {[%emt 0:19:37]} 13. Nb5 {[%emt 0:01:31]} Qa5+ {[%emt 0:13:36]} 14. Qd2 {[%emt 0:06:28]} Qxd2+ {[%emt 0:00:07]} 15. Kxd2 {[%emt 0:00:03]} dxe3+ {[%emt 0:00:06]} 16. fxe3 {[%emt 0:01:05]} Be5 {[%emt 0:03:19]} 17. Bxe5 {[%emt 0:02:28]} Nxe5 {[%emt 0:00:07]} 18. Be2 {[%emt 0:01:32]} Rad8+ {[%emt 0:04:45]} 19. Nd4 {[%emt 0:02:07]} Nc6 {[%emt 0:02:54]} 20. Ngf3 {[%emt 0:03:57]} Bxf3 {[%emt 0:08:56]} 21. Bxf3 {[%emt 0:00:26]} Nxd4 {[%emt 0:00:05]} 22. exd4 {[%emt 0:00:04]} Rxd4+ {[%emt 0:00:07]} 23. Kc3 {[%emt 0:04:11]} Rd7 {[%emt 0:00:58]} 24. Rad1 {[%emt 0:01:24]} Rc8+ {[%emt 0:02:36]} 25. Kb4 {[%emt 0:00:23]} Rcc7 {[%emt 0:02:45]} 26. Rxd7 {[%emt 0:03:47]} Nxd7 {[%emt 0:00:51]} 27. Rd1 {[%emt 0:05:14]} Kf8 {[%emt 0:02:12]} 28. a4 {[%emt 0:01:49]} Ne5 {[%emt 0:02:37]} 29. Rd8+ {[%emt 0:07:11]} Ke7 {[%emt 0:00:08]} 30. Ra8 {[%emt 0:00:52]} Nd3+ {[%emt 0:10:03]} 31. Ka3 {[%emt 0:01:07]} b6 {[%emt 0:00:05]} 32. Be4 {[%emt 0:04:06]} Ne5 {[%emt 0:03:13]} 33. Kb4 {[%emt 0:02:23]} g6 {[%emt 0:01:01]} 34. Kb5 {[%emt 0:02:03]} f5 {[%emt 0:01:15]} 35. Bf3 {[%emt 0:00:54]} Nxf3 {[%emt 0:04:12]} 36. gxf3 {[%emt 0:00:02]} f4 {[%emt 0:00:08]} 37. Ka6 {[%emt 0:06:28]} g5 {[%emt 0:00:34]} 38. h3 {[%emt 0:02:29]} Kf6 {[%emt 0:01:56]} 39. b4 {[%emt 0:05:23]} h5 {[%emt 0:00:21]} 40. Rf8+ {[%emt 0:06:13]} Kg7 {[%emt 0:01:04]} 41. Rf5 {[%emt 0:05:00]} Kg6 {[%emt 0:00:56]} 42. Rf8 {[%emt 0:01:24]} Rc4 {[%emt 0:06:06]} 43. Kb5 {[%emt 0:00:45]} Rc3 {[%emt 0:00:43]} 44. Rg8+ {[%emt 0:04:25]} Kf6 {[%emt 0:00:58]} 45. Ra8 {[%emt 0:06:34]} Rxf3 {[%emt 0:10:37]} 46. Rxa7 {[%emt 0:00:28]} g4 {[%emt 0:01:36]} 47. hxg4 {[%emt 0:00:43]} hxg4 {[%emt 0:00:10]} 48. Rb7 {[%emt 0:05:04]} g3 {[%emt 0:00:28]} 49. Rxb6+ {[%emt 0:00:00]} 0-1